bitfinex-derivatives/quotes_BNBF0:USTF0_20250617
["timestamp","ask_amount","ask_price","bid_price","bid_amount"]
[1750176972668,1.53053325,645.73,645.55,1.278]
[1750176974168,1.53053325,645.87,645.55,1.278]
[1750176974367,0.30966463,645.86,645.55,1.278]
[1750176978273,0.30966463,645.86,645.53,0.857]
[1750176979274,1.53053325,645.85,645.53,0.857]
[1750176979469,0.30967422,645.84,645.53,0.857]
[1750176979877,1.84020747,645.84,645.54,1.318]
[1750176980678,1.53053325,645.82,645.54,1.318]
[1750176980875,0.3096886,645.81,645.54,1.318]
[1750176981076,1.53053325,645.8,645.54,1.318]
[1750176981285,1.53053325,645.79,645.54,1.318]
[1750176981578,1.53053325,645.74,645.54,1.318]
[1750176981778,0.26960651,645.73,645.54,1.318]
[1750176982980,1.80013976,645.73,645.54,1.318]
[1750176983481,1.53053325,645.71,645.54,1.318]
[1750176983683,1.53053325,645.66,645.54,1.318]
[1750176983884,1.53053325,645.68,645.54,1.318]
[1750176984079,1.53053325,645.65,645.54,1.318]
[1750176984280,1.53053325,645.64,645.54,1.318]
[1750176984980,0.26960651,645.73,645.54,1.318]
[1750176985180,1.53053325,645.62,645.54,1.318]
[1750176985584,2.29579987,645.63,645.54,1.318]
[1750176985780,2.29579987,645.65,645.54,1.318]
[1750176985987,2.29579987,645.64,645.54,1.318]
[1750176986188,2.29579987,645.72,645.54,1.318]
[1750176986390,2.60553643,645.71,645.54,1.318]
[1750176986585,0.30973656,645.71,645.54,1.318]
[1750176987089,2.60553643,645.71,645.54,1.318]
[1750176987589,1.53924189,645.61,645.54,1.318]
[1750176987789,1.53924189,645.6,645.54,1.318]
[1750176988186,2.60553643,645.71,645.54,1.318]
[1750176988389,2.29579987,645.68,645.54,1.318]
[1750176988586,0.30975575,645.67,645.54,1.318]
[1750176990489,2.29579987,645.66,645.54,1.318]
[1750176990692,0.30976535,645.65,645.54,1.318]
[1750176991290,2.60556522,645.65,645.54,1.318]
[1750176991590,1.53718198,645.55,645.54,1.318]
[1750176991892,1.84699531,645.55,645.54,1.318]
[1750176992293,1.84699531,645.55,645.48,1.071]
[1750176992588,0.30981813,645.54,645.48,1.071]
[1750176993592,1.53718198,645.58,645.48,1.071]
[1750176994593,1.53718198,645.57,645.48,1.071]
[1750176995194,1.53718198,645.58,645.48,1.071]
[1750176995592,1.53718198,645.59,645.48,1.071]
[1750176997399,1.53718198,645.55,645.48,1.071]
[1750176998496,1.53718198,645.56,645.48,1.071]
[1750176999499,1.53718198,645.57,645.48,1.071]
[1750177001100,1.53718198,645.58,645.48,1.071]
[1750177002202,1.53718198,645.59,645.48,1.071]
[1750177003005,1.53718198,645.58,645.48,1.071]
[1750177003800,1.53718198,645.57,645.48,1.071]
[1750177004805,2.29579987,645.7,645.48,1.071]
[1750177005305,1.53480751,645.59,645.48,1.071]
[1750177007808,2.56540638,645.73,645.48,1.071]
[1750177009103,0.26960651,645.73,645.48,1.071]
[1750177010809,0.26960651,645.73,645.18,1.446]
[1750177017113,0.26960651,645.73,645.08,1.228]
[1750177019417,1.53643049,645.65,645.08,1.228]
[1750177019611,1.53643049,645.64,645.08,1.228]
[1750177020714,1.53643049,645.62,645.08,2.66]
[1750177021014,1.53643049,645.54,645.08,2.66]
[1750177021412,1.53643049,645.53,645.08,2.66]
[1750177021813,1.53643049,645.52,645.08,2.66]
[1750177022417,1.53643049,645.42,645.08,2.66]
[1750177022617,1.53643049,645.4,645.08,2.66]
[1750177022918,1.53643049,645.41,645.08,2.66]
[1750177023219,1.53643049,645.42,645.08,2.66]
[1750177024015,1.53643049,645.41,645.08,2.66]
[1750177024220,1.53643049,645.4,645.08,2.66]
[1750177026416,1.53643049,645.41,645.08,2.66]
[1750177026621,0.30988534,645.4,645.08,2.66]
[1750177026815,1.53643049,645.39,645.08,2.66]
[1750177027020,0.30989494,645.38,645.08,2.66]
[1750177036828,0.26960651,645.73,645.08,2.66]
[1750177037124,0.30973177,645.72,645.08,2.66]
[1750177040327,0.30973177,645.72,645.09,1.27]
[1750177047932,0.26960651,645.73,645.09,1.27]
[1750177048332,0.26960651,645.73,645.09,2.42172485]
[1750177048526,0.26960651,645.73,645.09,1.27]
[1750177048731,0.26960651,645.73,645.09,2.42172485]
[1750177049033,0.26960651,645.73,645.1,1.15172485]
[1750177049939,0.26960651,645.73,645.11,1.15172485]
[1750177050136,0.26960651,645.73,645.13,1.15172485]
[1750177050334,0.26960651,645.73,645.12,1.15172485]
[1750177050535,0.26960651,645.73,645.13,1.15172485]
[1750177051434,0.26960651,645.73,645.12,1.15172485]
[1750177051734,0.26960651,645.73,645.13,1.448]
[1750177052039,0.26960651,645.73,645.13,2.59972485]
[1750177052334,1.53643049,646.45,645.13,2.59972485]
[1750177052539,0.26948021,645.81,645.13,2.59972485]
[1750177052836,0.30939158,646.43,645.15,1.15172485]
[1750177053036,0.26948229,645.81,645.14,1.15172485]
[1750177053237,0.26948229,645.81,645.13,1.448]
[1750177053437,0.30939158,646.43,645.13,1.448]
[1750177053636,0.26948125,645.81,645.13,2.59972485]
[1750177053937,0.30939158,646.43,645.18,1.15172485]
[1750177054137,0.26947186,645.86,645.18,1.15172485]
[1750177054442,0.30939158,646.43,645.17,1.15172485]
[1750177054740,0.26946873,645.85,645.18,1.15172485]
[1750177055040,0.30939158,646.43,645.18,1.15172485]
[1750177055241,0.2694729,645.83,645.18,1.15172485]
[1750177055541,0.30939158,646.43,645.17,1.15172485]
[1750177055735,0.2694729,645.83,645.17,1.15172485]
[1750177055935,0.2694729,645.83,645.18,1.15172485]
[1750177056136,0.30939158,646.43,645.18,1.15172485]
[1750177056342,0.26947395,645.83,645.18,1.15172485]
[1750177056539,0.30939158,646.43,645.18,1.15172485]
[1750177057247,0.30939158,646.43,645.17,1.15172485]
[1750177057537,0.30939158,646.43,645.13,1.448]
[1750177057538,0.26944786,646.12,645.15,1.15172485]
[1750177057936,0.26944786,646.12,645.16,0.858]
[1750177061946,0.26944786,646.12,645.18,1.15172485]
[1750177063145,0.26944786,646.12,645.18,0.30999101]
[1750177070249,0.26944786,646.12,645.16,0.858]
[1750177070749,0.30954481,646.11,645.16,0.858]
[1750177071145,0.30954481,646.11,645.17,1.209]
[1750177072547,0.30954481,646.11,645.18,1.477]
[1750177076355,0.30954481,646.11,645.19,0.858]
[1750177077458,0.30954481,646.11,645.2,1.448]
[1750177086263,1.83254674,646.11,645.2,1.448]
[1750177086562,1.52300193,646.07,645.2,1.448]
[1750177086763,0.30956877,646.06,645.2,1.448]
[1750177087464,1.52300193,646.04,645.2,1.448]
[1750177087663,1.83258507,646.03,645.2,1.448]
[1750177087860,0.30958793,646.02,645.2,1.448]
[1750177088463,1.52300193,646.0,645.2,1.448]
[1750177088664,0.30960231,645.99,645.2,1.448]
[1750177089162,1.83260424,645.99,645.2,1.448]
[1750177089361,1.52300193,645.95,645.2,1.448]
[1750177089560,1.52300193,645.96,645.2,1.448]
[1750177089863,1.52300193,645.95,645.2,1.448]
[1750177090566,1.52300193,645.9,645.19,0.858]
[1750177090761,1.52300193,645.91,645.19,0.858]
[1750177090965,1.52300193,645.92,645.19,0.858]
[1750177091262,1.52300193,645.95,645.19,0.858]
[1750177091466,1.52300193,645.94,645.19,0.858]
[1750177091665,1.52300193,645.93,645.19,0.858]
[1750177091866,1.52300193,645.96,645.19,0.858]
[1750177092067,1.83260424,645.99,645.19,0.858]
[1750177092369,1.52300193,645.98,645.19,0.858]
[1750177092567,1.52300193,645.97,645.19,0.858]
[1750177092868,1.52300193,645.98,645.19,0.858]
[1750177093866,1.52300193,645.98,645.2,1.073]
[1750177094270,1.52300193,645.98,645.21,1.319]
[1750177096069,1.52300193,645.93,645.21,1.319]
[1750177096273,1.52300193,645.91,645.21,1.319]
[1750177096573,1.52300193,645.89,645.21,1.319]
[1750177096768,1.52300193,645.87,645.21,1.319]
[1750177096969,1.52300193,645.84,645.21,1.319]
[1750177097274,1.52300193,645.85,645.21,1.319]
[1750177097573,1.52300193,645.84,645.21,1.319]
[1750177097869,1.52300193,645.82,645.21,1.319]
[1750177098268,1.52300193,645.8,645.21,1.319]
[1750177099773,1.52300193,645.79,645.21,1.319]
[1750177100173,1.52300193,645.8,645.21,1.319]
[1750177100372,1.52300193,645.81,645.21,1.319]
[1750177100575,1.52300193,645.8,645.21,1.319]
[1750177100977,1.52300193,645.78,645.21,1.319]
[1750177101279,1.52300193,645.79,645.21,1.319]
[1750177101876,1.52300193,645.75,645.21,1.319]
[1750177102277,1.52300193,645.76,645.21,1.319]
[1750177102472,1.52300193,645.77,645.21,1.319]
[1750177102675,1.52300193,645.76,645.21,1.319]
[1750177103176,1.52300193,645.75,645.21,1.319]
[1750177103371,0.30972217,645.74,645.21,1.319]
[1750177105579,0.30972217,645.74,645.22,0.858]
[1750177109276,1.8327241,645.74,645.22,0.858]
[1750177109582,1.52300193,645.73,645.22,0.858]
[1750177109779,0.30973177,645.72,645.22,0.858]
[1750177109976,1.8327337,645.72,645.22,0.858]
[1750177110179,1.52300193,645.71,645.22,0.858]
[1750177110682,0.30973177,645.72,645.22,0.858]
[1750177112982,1.8327337,645.72,645.22,0.858]
[1750177113279,1.52300193,645.71,645.22,0.858]
[1750177113482,0.30974136,645.7,645.22,0.858]
[1750177113884,1.83274329,645.7,645.22,0.858]
[1750177114377,0.30974136,645.7,645.22,0.858]
[1750177126088,1.52300193,645.69,645.22,0.858]
[1750177126293,0.30975096,645.68,645.22,0.858]
[1750177126491,1.83275289,645.68,645.22,0.858]
[1750177126691,1.52300193,645.66,645.22,0.858]
[1750177126889,0.30976535,645.65,645.22,0.858]
[1750177127395,1.83276728,645.65,645.22,0.858]
[1750177127592,1.83276728,645.65,645.2,1.073]
[1750177127995,1.83276728,645.65,645.21,0.995]
[1750177128398,1.52300193,645.64,645.21,0.995]
[1750177129092,1.52300193,645.62,645.21,0.995]
[1750177129292,1.52300193,645.63,645.21,0.995]
[1750177129492,1.52300193,645.6,645.21,0.995]
[1750177130193,1.52300193,645.6,645.22,0.858]
[1750177131095,0.26944786,646.12,645.22,0.858]
[1750177131096,1.52300193,645.62,645.22,0.858]
[1750177131498,1.52300193,645.67,645.22,0.858]
[1750177132094,1.52300193,645.67,645.23,1.233]
[1750177132496,1.52300193,645.66,645.23,1.233]
[1750177134301,1.52300193,645.64,645.23,1.233]
[1750177134601,1.52300193,645.59,645.23,1.233]
[1750177134800,1.52300193,645.6,645.23,1.233]
[1750177134998,1.52300193,645.59,645.23,1.233]
[1750177136404,1.52300193,645.58,645.23,1.233]
[1750177137103,1.52300193,645.59,645.23,1.233]
[1750177137304,1.52300193,645.58,645.23,1.233]
[1750177137505,1.52300193,645.57,645.23,1.233]
[1750177138204,2.28450289,645.72,645.23,1.233]
[1750177138205,1.52300193,645.58,645.23,1.233]
[1750177138406,1.52300193,645.57,645.23,1.233]
[1750177139602,1.52300193,645.56,645.23,1.233]
[1750177140006,1.52300193,645.57,645.23,1.233]
[1750177141206,1.52300193,645.56,645.23,1.233]
[1750177141408,1.52300193,645.52,645.23,1.233]
[1750177142206,1.52300193,645.56,645.23,1.233]
[1750177142502,1.52300193,645.57,645.23,1.233]
[1750177143704,1.52300193,645.6,645.23,1.233]
[1750177145003,1.52300193,645.62,645.23,1.233]
[1750177145601,1.52300193,645.63,645.23,1.233]
[1750177146006,1.52300193,645.62,645.23,1.233]
[1750177146709,1.52300193,645.67,645.23,1.233]
[1750177147008,1.52300193,645.72,645.23,1.233]
[1750177147206,1.52300193,645.7,645.23,1.233]
[1750177147603,1.52300193,645.71,645.23,1.233]
[1750177147802,1.52300193,645.72,645.23,1.233]
[1750177148207,1.52300193,645.71,645.24,1.448]
[1750177148406,1.52300193,645.72,645.24,1.448]
[1750177148604,1.52300193,645.71,645.24,1.448]
[1750177149105,0.26944786,646.12,645.24,1.448]
[1750177149106,1.52300193,645.77,645.24,1.448]
[1750177149303,1.52300193,645.76,645.25,1.259]
[1750177151106,1.52300193,645.71,645.25,1.259]
[1750177151709,1.52300193,645.7,645.25,1.259]
[1750177151906,1.52300193,645.69,645.25,1.259]
[1750177152110,1.52300193,645.68,645.25,1.259]
[1750177152612,1.52300193,645.7,645.25,1.259]
[1750177153308,1.52300193,645.68,645.25,1.259]
[1750177153511,1.52300193,645.69,645.25,1.259]
[1750177154109,1.52300193,645.71,645.25,1.259]
[1750177154313,1.52300193,645.69,645.25,1.259]
[1750177154613,1.52300193,645.72,645.25,1.259]
[1750177155213,1.52300193,645.7,645.25,1.259]
[1750177155512,1.52300193,645.71,645.25,1.259]
[1750177156208,1.52300193,645.7,645.25,1.259]
[1750177156713,1.52300193,645.68,645.25,1.259]
[1750177157213,1.52300193,645.67,645.25,1.259]
[1750177157913,1.52300193,645.58,645.25,1.259]
[1750177158114,1.52300193,645.59,645.25,1.259]
[1750177158414,1.52300193,645.58,645.25,1.259]
[1750177159509,1.52300193,645.59,645.25,1.259]
[1750177161313,1.52300193,645.61,645.25,1.259]
[1750177161515,1.52300193,645.62,645.25,1.259]
[1750177161813,1.52300193,645.61,645.25,1.259]
[1750177162214,1.52300193,645.61,645.26,0.858]
[1750177163015,1.52300193,645.59,645.26,0.858]
[1750177163219,1.52300193,645.6,645.26,0.858]
[1750177163518,1.52300193,645.57,645.26,0.858]
[1750177164017,1.52300193,645.56,645.26,0.858]
[1750177164317,1.52300193,645.53,645.26,0.858]
[1750177164622,1.52300193,645.52,645.26,0.858]
[1750177165220,1.52300193,645.51,645.26,0.858]
[1750177165421,1.52300193,645.51,645.27,1.448]
[1750177165824,1.52300193,645.52,645.27,1.448]
[1750177166322,1.52300193,645.51,645.27,1.448]
[1750177166819,1.52300193,645.55,645.27,1.448]
[1750177169926,1.52300193,645.58,645.27,1.448]
[1750177170925,1.52300193,645.59,645.27,1.448]
[1750177171228,1.52300193,645.58,645.27,1.448]
[1750177171427,1.52300193,645.59,645.27,1.448]
[1750177173229,1.52300193,645.58,645.27,1.448]
[1750177174130,1.52300193,645.57,645.27,1.448]
[1750177174731,1.52300193,645.67,645.27,1.448]
[1750177175131,1.52300193,645.66,645.27,1.448]
[1750177175533,1.52300193,645.75,645.27,1.448]
[1750177175728,0.30972217,645.74,645.27,1.448]
[1750177176128,0.30972217,645.74,645.28,1.199]
[1750177177130,1.8327241,645.74,645.28,1.199]
[1750177177333,0.30972217,645.74,645.28,1.199]
[1750177181938,0.30972217,645.74,645.29,1.448]
[1750177182138,1.8327241,645.74,645.29,1.448]
[1750177182536,0.30972217,645.74,645.29,1.448]
[1750177183240,1.8327241,645.74,645.29,1.448]
[1750177184541,1.52300193,645.72,645.29,1.448]
[1750177185539,1.52300193,645.62,645.29,1.448]
[1750177185841,0.30972217,645.74,645.29,1.448]
[1750177185842,1.52300193,645.67,645.29,1.448]
[1750177186042,0.30972217,645.74,645.29,1.448]
[1750177192552,0.26944786,646.12,645.29,1.448]
[1750177192850,0.57898788,646.12,645.29,1.448]
[1750177193553,0.57898788,646.12,645.3,1.15357073]
[1750177194149,0.57898788,646.12,645.29,1.15357073]
[1750177194553,0.57898788,646.12,645.3,0.858]
[1750177195652,0.57898788,646.12,645.31,1.207]
[1750177195953,0.57898788,646.12,645.31,2.568]
[1750177196553,0.57898788,646.12,645.32,1.448]
[1750177198858,0.57898788,646.12,645.35,1.15357073]
[1750177199461,0.57898788,646.12,645.33,1.15357073]
[1750177199661,0.57898788,646.12,645.35,1.15357073]
[1750177200659,0.57898788,646.12,645.32,1.448]
[1750177202063,0.30954002,646.12,645.32,1.448]
[1750177202459,0.26951568,645.93,645.32,1.448]
[1750177215970,0.26951568,645.93,645.32,2.60157073]
[1750177216472,0.30954002,646.12,645.33,1.15357073]
[1750177216669,0.30954002,646.12,645.39,1.15357073]
[1750177216871,0.26946143,646.01,645.39,1.15357073]
[1750177217775,0.26946143,646.01,645.4,1.15357073]
[1750177218873,0.26946143,646.01,645.41,1.15357073]
[1750177219271,0.26946143,646.01,645.4,1.15357073]
[1750177220073,0.26946143,646.01,645.42,1.15357073]
[1750177220270,0.26946143,646.01,645.41,1.15357073]
[1750177220671,0.26946143,646.01,645.43,1.15357073]
[1750177220977,1.52300193,646.78,645.45,1.15357073]
[1750177221180,0.26936027,646.15,645.48,1.15357073]
[1750177221475,0.30923371,646.76,645.47,1.15357073]
[1750177221670,0.2693363,646.21,645.47,1.15357073]
[1750177221870,0.2693363,646.21,645.48,1.15357073]
[1750177222081,0.30923371,646.76,645.51,1.15357073]
[1750177222373,0.2693363,646.21,645.51,1.15357073]
[1750177222573,0.30923371,646.76,645.51,1.15357073]
[1750177222778,0.26933317,646.21,645.51,1.15357073]
[1750177223178,0.30923371,646.76,645.51,1.15357073]
[1750177223374,0.26933317,646.21,645.51,1.15357073]
[1750177223577,0.30923371,646.76,645.5,1.15357073]
[1750177224076,0.26933317,646.21,645.51,0.857]
[1750177224278,0.30923371,646.76,645.51,0.857]
[1750177224478,0.26933004,646.45,645.51,0.857]
[1750177226079,0.26933004,646.45,645.52,1.447]
[1750177228482,0.26933004,646.45,645.53,1.01557204]
[1750177228680,0.26933004,646.45,645.54,1.01557204]
[1750177228983,0.26933004,646.45,645.55,1.01557204]
[1750177229180,0.26933004,646.45,645.56,1.01557204]
[1750177229383,0.26933004,646.45,645.57,1.01557204]
[1750177229584,0.26933004,646.45,645.58,1.01557204]
[1750177229884,0.26933004,646.45,645.59,1.01557204]
[1750177230081,0.26933004,646.45,645.6,1.01557204]
[1750177230279,0.26933004,646.45,645.52,1.447]
[1750177230482,0.26933004,646.45,645.53,1.01642689]
[1750177230681,0.26933004,646.45,645.54,1.01642689]
[1750177230886,0.26933004,646.45,645.55,1.01642689]
[1750177231080,0.26933004,646.45,645.56,1.01642689]
[1750177231282,0.26933004,646.45,645.52,1.447]
[1750177231482,0.26933004,646.45,645.53,1.01678479]
[1750177231683,0.26933004,646.45,645.54,1.01678479]
[1750177231886,0.26933004,646.45,645.55,1.01678479]
[1750177232087,0.30938679,646.44,645.52,1.447]
[1750177240496,2.59388968,646.44,645.52,1.447]
[1750177240996,2.28450289,646.41,645.52,1.447]
[1750177241199,2.28450289,646.36,645.52,1.447]
[1750177241395,2.28450289,646.35,645.52,1.447]
[1750177241598,2.28450289,646.36,645.52,1.447]
[1750177241796,2.28450289,646.35,645.52,1.447]
[1750177242096,2.28450289,646.31,645.52,1.447]
[1750177242400,2.28450289,646.32,645.52,1.447]
[1750177242797,2.28450289,646.32,645.53,1.4]
[1750177243098,2.28450289,646.29,645.53,1.4]
[1750177243298,2.28450289,646.26,645.54,1.477]
[1750177243501,2.28450289,646.29,645.54,1.477]
[1750177244199,2.28450289,646.26,645.54,1.477]
[1750177244402,2.28450289,646.22,645.54,1.477]
[1750177245203,2.28450289,646.24,645.54,1.477]
[1750177245404,2.28450289,646.26,645.54,1.477]
[1750177245801,0.30938679,646.44,645.54,1.477]
[1750177245802,2.28450289,646.31,645.54,1.477]
[1750177246105,2.28450289,646.29,645.54,1.477]
[1750177246503,2.28450289,646.3,645.54,1.477]
[1750177247107,2.28450289,646.27,645.54,1.477]
[1750177248204,2.28450289,646.24,645.54,1.477]
[1750177249504,2.28450289,646.24,645.55,0.933]
[1750177249705,2.28450289,646.22,645.55,0.933]
[1750177251310,2.28450289,646.23,645.55,0.933]
[1750177251809,0.30949212,646.22,645.55,0.933]
[1750177252705,2.59399501,646.22,645.55,0.933]
[1750177253009,2.59399501,646.22,645.56,0.857]
[1750177253205,0.30949212,646.22,645.56,0.857]
[1750177253806,2.59399501,646.22,645.56,0.857]
[1750177254004,2.28450289,646.15,645.56,0.857]
[1750177254207,2.28450289,646.13,645.56,0.857]
[1750177254408,0.30954002,646.12,645.56,0.857]
[1750177255612,2.28450289,646.11,645.56,0.857]
[1750177255912,0.3095496,646.1,645.56,0.857]
[1750177256608,2.28450289,646.08,645.56,0.857]
[1750177256811,0.30956397,646.07,645.56,0.857]
[1750177258716,2.28450289,646.04,645.56,0.857]
[1750177258910,2.28450289,645.96,645.56,0.857]
[1750177259112,2.28450289,645.94,645.56,0.857]
[1750177259312,0.30963107,645.93,645.56,0.857]
[1750177269115,0.30963107,645.93,645.55,0.933]
[1750177272524,0.30963107,645.93,645.54,1.477]
[1750177282631,2.28450289,646.24,645.54,1.477]
[1750177283135,2.28450289,646.25,645.54,1.477]
[1750177283435,2.28450289,646.23,645.53,2.257]
[1750177284035,2.28450289,646.22,645.53,2.257]
[1750177284236,2.28450289,646.21,645.53,2.257]
[1750177285033,2.28450289,646.2,645.53,2.257]
[1750177285238,2.28450289,646.18,645.53,2.257]
[1750177285740,2.28450289,646.18,645.54,1.329]
[1750177286240,2.28450289,646.16,645.54,1.329]
[1750177287140,2.28450289,646.15,645.54,1.329]
[1750177287336,2.28450289,646.12,645.54,1.329]
[1750177287841,2.28450289,646.04,645.54,1.329]
[1750177288235,2.28450289,646.06,645.54,1.329]
[1750177288439,2.28450289,646.1,645.54,1.329]
[1750177288740,2.28450289,646.11,645.54,1.329]
[1750177289442,2.28450289,646.07,645.54,1.329]
[1750177290236,2.28450289,646.06,645.54,1.329]
[1750177291237,2.28450289,646.04,645.54,1.329]
[1750177292237,2.28450289,646.02,645.54,1.329]
[1750177292937,2.28450289,646.03,645.54,1.329]
[1750177293241,2.28450289,646.06,645.54,1.329]
[1750177293436,2.28450289,646.05,645.54,1.329]
[1750177293740,2.28450289,646.06,645.54,1.329]
[1750177294235,2.28450289,646.01,645.54,1.329]
[1750177294441,2.28450289,646.05,645.54,1.329]
[1750177294741,2.28450289,646.06,645.54,1.329]
[1750177295238,2.28450289,646.05,645.54,1.329]
[1750177295643,2.28450289,646.01,645.54,1.329]
[1750177296242,2.28450289,646.0,645.54,1.329]
[1750177297245,2.28450289,645.99,645.54,1.329]
[1750177298244,2.28450289,645.98,645.54,1.329]
[1750177299446,2.28450289,645.97,645.54,1.329]
[1750177300144,2.28450289,646.0,645.54,1.329]
[1750177300344,2.28450289,645.98,645.54,1.329]
[1750177300544,2.28450289,645.99,645.54,1.329]
[1750177300743,2.28450289,645.94,645.54,1.329]
[1750177301242,2.28450289,645.95,645.54,1.329]
[1750177301446,2.28450289,646.01,645.54,1.329]
[1750177301641,2.28450289,646.02,645.54,1.329]
[1750177301945,2.28450289,646.01,645.54,1.329]
[1750177302547,2.28450289,646.0,645.54,1.329]
[1750177302744,2.28450289,646.01,645.54,1.329]
[1750177303745,2.28450289,646.01,645.55,1.407]
[1750177304148,2.28450289,646.07,645.55,1.407]
[1750177305045,2.28450289,646.08,645.55,1.407]
[1750177305449,2.28450289,646.09,645.55,1.407]
[1750177305950,2.28450289,646.09,645.56,0.982]
[1750177306444,0.26933004,646.45,645.56,0.982]
[1750177306445,2.28450289,646.08,645.56,0.982]
[1750177306646,2.28450289,646.07,645.56,0.982]
[1750177307148,2.28450289,646.08,645.56,0.982]
[1750177307348,2.28450289,646.07,645.56,0.982]
[1750177307551,2.28450289,646.08,645.56,0.982]
[1750177307752,2.28450289,646.07,645.56,0.982]
[1750177309953,2.28450289,646.08,645.56,0.982]
[1750177310249,2.28450289,646.09,645.56,0.982]
[1750177310452,2.28450289,646.1,645.56,0.982]
[1750177310649,2.28450289,646.09,645.56,0.982]
[1750177311453,2.28450289,646.07,645.56,0.982]
[1750177311653,2.59406686,646.07,645.56,0.982]
[1750177312155,0.30956397,646.07,645.56,0.982]
[1750177312752,2.59406686,646.07,645.56,0.982]
[1750177314154,2.28450289,646.02,645.56,0.982]
[1750177314653,0.30959273,646.01,645.56,0.982]
[1750177320062,2.59409562,646.01,645.56,0.982]
[1750177321256,0.30959273,646.01,645.56,0.982]
[1750177330366,0.30959273,646.01,645.57,1.447]
[1750177332768,2.28450289,646.0,645.57,1.447]
[1750177333571,2.59409562,646.01,645.57,1.447]
[1750177333769,2.28450289,645.99,645.57,1.447]
[1750177334473,2.28450289,646.0,645.57,1.447]
[1750177335171,2.59409562,646.01,645.57,1.447]
[1750177335471,2.28450289,646.0,645.57,1.447]
[1750177336070,2.59409562,646.01,645.57,1.447]
[1750177336475,2.28450289,646.0,645.57,1.447]
[1750177336675,2.28450289,645.99,645.57,1.447]
[1750177338481,2.28450289,646.0,645.57,1.447]
[1750177338982,2.28450289,645.99,645.57,1.447]
[1750177340278,2.28450289,645.98,645.57,1.447]
[1750177340476,2.28450289,645.99,645.57,1.447]
[1750177340677,0.30959273,646.01,645.57,1.447]
[1750177340678,2.28450289,645.98,645.57,1.447]
[1750177341394,0.30959273,646.01,645.56,0.982]
[1750177344689,0.30959273,646.01,645.57,1.336]
[1750177348094,2.59409562,646.01,645.57,1.336]
[1750177348391,2.28450289,646.0,645.57,1.336]
[1750177348793,0.30959273,646.01,645.57,1.336]
[1750177350792,2.59409562,646.01,645.57,1.336]
[1750177350995,2.28450289,645.99,645.57,1.336]
[1750177351196,2.28450289,645.98,645.57,1.336]
[1750177351398,2.28450289,645.97,645.57,1.336]
[1750177352394,2.28450289,645.96,645.57,1.336]
[1750177352597,2.28450289,645.96,645.58,1.491]
[1750177353496,2.28450289,645.94,645.58,1.491]
[1750177353695,2.28450289,645.94,645.59,0.859]
[1750177354402,2.28450289,645.93,645.59,0.859]
[1750177354600,2.28450289,645.94,645.59,0.859]
[1750177354898,2.28450289,645.93,645.59,0.859]
[1750177355401,2.28450289,645.93,645.6,1.285]
[1750177355899,2.28450289,645.94,645.6,1.285]
[1750177357402,2.28450289,645.93,645.6,1.285]
[1750177357598,2.28450289,645.94,645.6,1.285]
[1750177358403,2.28450289,645.96,645.6,1.285]
[1750177361199,2.28450289,645.94,645.6,1.285]
[1750177361905,2.28450289,645.93,645.6,1.285]
[1750177362100,2.28450289,645.94,645.6,1.285]
[1750177362708,0.30959273,646.01,645.6,1.285]
[1750177367312,1.54024833,645.98,645.6,1.285]
[1750177367711,1.54024833,645.96,645.6,1.285]
[1750177368610,1.54024833,645.95,645.6,1.285]
[1750177369411,1.54024833,645.94,645.6,1.285]
[1750177369713,1.54024833,645.95,645.6,1.285]
[1750177371922,1.54024833,645.92,645.6,1.285]
[1750177372122,1.54024833,645.88,645.6,1.285]
[1750177373719,1.54024833,645.89,645.6,1.285]
[1750177375421,1.54024833,645.89,645.61,0.859]